[Event "American Cup Open Champions 2025"]
[Site "Saint Louis"]
[Date "2025.03.16"]
[Round "1.2"]
[White "Mishra, Abhimanyu"]
[Black "Nakamura, Hikaru"]
[Result "1/2-1/2"]
[Annotator "TA"]
[ECO "B06"]
[WhiteElo "2600"]
[BlackElo "2802"]
[PlyCount "97"]
[EventDate "2025.03.02"]
[EventType "k.o."]
[EventCountry "USA"]
[SourceTitle "playchess.com"]
[Source "ChessBase"]
[SourceQuality "1"]
[TimeControl "5400+30"]

{[%evp 11,97,25,36,22,28,22,22,21,23,38,27,20,23,18,18,11,24,8,8,0,12,-20,0,-55,-37,-47,-43,-61,-55,-63,-49,-47,-36,-60,-25,-34,-23,-46,-22,-27,-10,-26,-22,-111,-142,-114,-137,-114,-114,-122,-55,-93,-92,-146,-146,-142,0,0,0,0,0,0,0,0,0,0,0,0,0,0,0,0,0,0,0,0,0,-29998,0,0,0,0,0,0,0,0,0,0]} 1. e4 {[%emt 0:00:01]} c5 {[%emt 0:00:22]} 2. Nf3 {[%emt 0:00:06]} g6 {[%emt 0:00:04]} 3. c3 {[%emt 0:00:30]} d5 {[%emt 0:00:07]} 4. exd5 {[%emt 0:00:52]} Qxd5 {[%emt 0:00:06]} 5. d4 {[%emt 0:00:51]} Bg7 {[%emt 0:00:05]} 6. Na3 {[%emt 0:02:18]} cxd4 {[%emt 0:00:26]} 7. Nb5 {[%emt 0:00:27] B06: Modern Defence.} Na6 {Prevents Nc7+.} 8. Nbxd4 {[%emt 0:00:30]} Nf6 {[%emt 0:00:31]} 9. Bb5+ {[%emt 0:00:21]} Bd7 {[%emt 0:00:30]} 10. Bxa6 $1 {[%emt 0:00:11] 10.Bxa6 scores better than 10.Qe2.} bxa6 {[%emt 0:00:05]} 11. O-O {[%emt 0:00:13]} O-O {[%emt 0:00:48]} 12. Re1 {[%emt 0:00:33]} Rfe8 {[%emt 0:00:00]} 13. Ne5 {[%emt 0:00:09]} Red8 {[%emt 0:13:04]} 14. Qb3 {[%emt 0:16:58]} Be8 15. h3 $146 {[%emt 0:07:50]} (15. Nef3 Qc5 16. Qb7 Nd5 17. Qxa6 e5 18. Nxe5 Nxc3 19. Be3 Qxe5 20. bxc3 Qd6 21. Qe2 {½-½ Pundak,M-Polatel,A (2111) EU-ch 2016 pr07 email}) 15... e6 16. Bf4 {[%emt 0:16:00]} a5 (16... Rab8 {looks sharper.} 17. Qa3 Nh5 18. Bh2 Bf8) 17. Qxd5 {[%emt 0:16:27]} (17. Nef3 $11) 17... Nxd5 $15 {[%emt 0:20:59]} 18. Bg3 {[%emt 0:00:00]} Rac8 {[%emt 0:06:25] Strong Rooks Black (c8+d8) Prevents Ndc6.} 19. Re2 {[%emt 0:00:00]} a4 {[%emt 0:00:30][%cal Oa4a3]} 20. a3 $1 {[%emt 0:00:00]} Nb6 {[%emt 0:04:16]} 21. Rae1 {[%emt 0:00:00]} a6 {[%emt 0:20:22]} 22. f4 {[%emt 0:09:45][%cal Bf2f4,Bf4f5][%mdl 32]} Nd5 23. Bh2 Bf8 {[%emt 0:00:00]} 24. Kh1 Bd6 {[%emt 0:00:02]} 25. g4 {[%emt 0:01:30]} Bb8 {[%emt 0:17:04]} 26. f5 {[%emt 0:13:39]} f6 {[%emt 0:07:03]} 27. Nef3 {[%emt 0:01:44]} (27. Nxe6 $11 fxe5 28. Nxd8 Rxd8 29. Bxe5) 27... e5 $17 {[%emt 0:00:00]} 28. Ne6 {[%emt 0:08:49]} Rd6 29. Nd2 {[%emt 0:00:30]} Bc6 {[%emt 0:13:04]} 30. Ne4 {[%emt 0:07:48]} Nc7 {[%emt 0:00:00]} ({Black should try} 30... Nb6 $17 {...Nc4 would now be deadly.} 31. Bg1 Nc4) 31. Nd4 {[%emt 0:03:01]} Bb7 {[%emt 0:02:58] This pair of bishops is nice.} 32. Kg1 {[%emt 0:01:19]} (32. fxg6 $142 hxg6 33. Bg3) 32... Bxe4 {[%emt 0:00:05]} 33. Rxe4 {[%emt 0:00:00]} Ba7 (33... Rb6 $17 34. Ne2 Rxb2 35. Rxa4 Rd8) 34. Kh1 $11 {[%emt 0:00:00][%cal Og4g5]} Rcd8 {[%emt 0:02:49]} 35. fxg6 {[%emt 0:00:12]} hxg6 {[%emt 0:00:00]} (35... exd4 36. Bxd6 (36. Re7 Re6 $14) 36... Rxd6 37. gxh7+ (37. Re7 Bb6 $18) 37... Kh8 38. Re7 $16) 36. Nf3 {[%emt 0:00:35][%cal Og4g5]} Rd3 {[%emt 0:00:00]} 37. Kg2 {[%emt 0:00:00][%cal Og4g5]} Nd5 {[%emt 0:00:00]} 38. g5 {[%emt 0:00:00]} Rf8 {[%emt 0:00:00]} 39. gxf6 {[%emt 0:00:00]} Rxf6 {[%emt 0:00:00]} 40. Nxe5 {[%emt 0:00:00]} Rf2+ {[%emt 0:00:00]} 41. Kh1 {[%emt 0:00:00]} Rxh3 {[%emt 0:00:00]} 42. Ng4 {[%emt 0:00:25] Counterplay Black} Rxb2 {[%emt 0:01:23][%cal Od5e3]} 43. Rd1 {[%emt 0:00:41]} Ne3 {[%emt 0:00:00] ( -> ...Nxg4)} (43... Nxc3 $2 {is the wrong capture.} 44. Rd8+ Kf7 45. Rd7+ Kf8 46. Rc4 (46. Rf4+ Ke8 $18) 46... Rhxh2+ 47. Nxh2 $18) 44. Rd7 $2 {[%emt 0:00:00][%mdl 8192] [#]} (44. Rd8+ $11 Kf7 45. Rd7+ Kf8 46. Rf4+ Kg8 47. Rd8+ Kg7 48. Rd7+ Kg8) 44... Kf8 $2 {[%emt 0:00:00]} 45. Rd8+ {[%emt 0:00:00] The position is equal.} Kf7 {[%emt 0:00:00]} 46. Rd7+ {[%emt 0:00:00]} Kf8 {[%emt 0:01:06]} 47. Rd8+ Kf7 48. Rd7+ Kf8 {[#] ( -> ...Rb1+)} 49. Rd8+ {Weighted Error Value: White=0.22 (precise) /Black=0.23 (precise)   Loses game:     	White=1     	---        Missed win:     	---       	Black=1      Mistake:       	White=3     	Black=2      Inaccurate:     	White=2     	Black=1      OK:         	White=18    	Black=16     Best:        	White=6     	Black=5      Strong:       	White=1     	---} 1/2-1/2

[Event "American Cup Open Champions 2025"]
[Site "Saint Louis"]
[Date "2025.03.16"]
[Round "1.3"]
[White "Nakamura, Hikaru"]
[Black "Mishra, Abhimanyu"]
[Result "0-1"]
[Annotator "TA"]
[ECO "A14"]
[WhiteElo "2802"]
[BlackElo "2600"]
[PlyCount "128"]
[EventDate "2025.03.02"]
[EventType "k.o."]
[EventCountry "USA"]
[SourceTitle "playchess.com"]
[Source "ChessBase"]
[SourceQuality "1"]
[TimeControl "180+2"]

{[%evp 18,128,0,0,8,1,24,0,34,23,41,42,47,51,29,42,34,37,49,45,52,53,45,47,53,52,53,52,51,51,45,49,53,60,53,19,10,0,0,0,0,0,0,0,34,0,0,0,0,0,0,0,0,0,0,0,0,-52,-49,-39,-69,-70,-54,-87,-22,-35,-22,-139,0,-402,-402,-599,-481,-383,0,-41,-25,-29986,-8,-8,0,0,0,0,0,0,0,0,0,0,0,0,0,0,0,0,0,0,0,0,0,0,0,0,0,0,0,0,0,0,0,-29981,-29982]} 1. Nf3 {[%emt 0:00:01]} Nf6 {[%emt 0:00:01]} 2. g3 {[%emt 0:00:01]} d5 {[%emt 0:00:01]} 3. Bg2 {[%emt 0:00:01]} e6 {[%emt 0:00:01]} 4. O-O {[%emt 0:00:03]} Be7 {[%emt 0:00:01]} 5. b3 {[%emt 0:00:01]} O-O {[%emt 0:00:02]} 6. e3 {[%emt 0:00:00]} c5 {[%emt 0:00:02]} 7. Bb2 {[%emt 0:00:01]} Nc6 {[%emt 0:00:04]} 8. c4 {[%emt 0:00:00]} d4 {[%emt 0:00:01]} 9. exd4 {[%emt 0:00:06]} cxd4 {[%emt 0:00:02]} 10. Re1 {[%emt 0:00:01]} Rb8 {[%emt 0:00:23] A14: English Opening: 1...e6 with b3 by White.} 11. Na3 {[%emt 0:00:18]} Bc5 {[%emt 0:00:32]} 12. Nc2 {[%emt 0:00:10][%cal Ob3b4]} b6 {[%emt 0:00:18] The position is equal.} (12... d3 $5 13. Ne3 $8 Qd6 $11) 13. d3 {[%emt 0:00:12]} Bb7 {[%emt 0:00:05]} 14. a3 {[%emt 0:00:07][%cal Ba2a3,Ba3b4,Bb4b5][%mdl 32] And now b4 would win.} a5 {[%emt 0:00:00]} 15. Rb1 {[%emt 0:00:04]} Re8 {[%emt 0:00:17]} 16. Bc1 {[%emt 0:00:06]} e5 {[%emt 0:00:27]} 17. b4 {[%emt 0:00:03]} axb4 $146 {[%emt 0:00:01]} (17... Bd6 18. Bg5 h6 19. Bxf6 Qxf6 20. Nd2 Qg6 21. Bd5 axb4 22. Qf3 Na5 23. axb4 Bxd5 24. cxd5 {1-0 Haring,F (2470)-Estevez Sacristan,D (1988) Prague op 2025 (1)}) 18. axb4 {[%emt 0:00:03]} Bd6 {[%emt 0:00:01]} 19. Bg5 {[%emt 0:00:11]} h6 {[%emt 0:00:12]} 20. Bxf6 {[%emt 0:00:01]} Qxf6 {[%emt 0:00:01]} 21. Nd2 {[%emt 0:00:01]} Qe7 {[%emt 0:00:25]} 22. b5 {[%emt 0:00:26]} Nb4 {[%emt 0:00:01]} 23. Nxb4 {[%emt 0:00:37]} Bxb4 {[%emt 0:00:05]} 24. Bxb7 {[%emt 0:00:01]} Bxd2 {[%emt 0:00:10]} 25. Qxd2 {[%emt 0:00:01]} Qxb7 {[%emt 0:00:02]} 26. Qe2 {[%emt 0:00:11]} Ra8 {[%emt 0:00:01]} 27. Ra1 {[%emt 0:00:07]} Rxa1 {[%emt 0:00:14]} 28. Rxa1 $11 {[%emt 0:00:00][%mdl 4096] Endgame KQR-KQR} e4 {[%emt 0:00:01]} 29. dxe4 {[%emt 0:00:19]} Rxe4 {[%emt 0:00:10]} 30. Qd3 {[%emt 0:00:01]} g6 {[%emt 0:00:02]} 31. Qd2 {[%emt 0:00:05]} h5 {[%emt 0:00:07]} 32. h4 {[%emt 0:00:05]} Qe7 {[%emt 0:00:01]} 33. Kg2 {[%emt 0:00:07]} Qb7 {[%emt 0:00:02] ( -> ...Re2+) Inhibits Ra8+.} 34. Kg1 {[%emt 0:00:02]} Qe7 {[%emt 0:00:01]} 35. Rd1 {[%emt 0:00:22]} Kh7 {[%emt 0:00:02]} 36. Kg2 {[%emt 0:00:03]} Qb7 {[%emt 0:00:02]} 37. Kh2 {[%emt 0:00:01]} (37. Kg1 $11) 37... Qc7 $15 {[%emt 0:00:04][%csl LRc4,LRh4]} 38. Qd3 {[%emt 0:00:01]} Rxh4+ {[%emt 0:00:02]} 39. Kg2 {[%emt 0:00:00]} Rg4 {[%emt 0:00:01]} 40. Re1 {[%emt 0:00:03]} Qb7+ {[%emt 0:00:05]} (40... Kg7 $1 $17 41. Re8 Qd6) 41. Kh2 {[%emt 0:00:08]} (41. f3 h4 42. Re4 Rxe4 43. fxe4 h3+ 44. Kxh3 Qd7+ 45. Kg2) 41... h4 {[%emt 0:00:03]} 42. Kh3 {[%emt 0:00:05]} (42. Re5 $1 $11 {remains equal.}) 42... Rg5 {[%emt 0:00:04]} (42... Qc8 $17 43. Kh2 hxg3+ 44. fxg3 Qc7) 43. g4 {[%emt 0:00:03][%mdl 8192]} (43. gxh4 $2 Qg2#) (43. Kxh4 $2 Rf5 (43... Rh5+ $2 44. Kg4 $19) 44. Kh3 (44. Qxd4 Qf3) 44... Rxf2 $17) (43. Re4 $11 {and White stays safe.}) 43... f5 $1 $19 {[%emt 0:00:03]} 44. f3 {[%emt 0:00:00]} (44. Qxd4 $142 Qf3+ (44... Rxg4 $2 45. Qd5 $19) 45. Kh2 Rxg4 (45... Qxg4 46. Re7+ Kh6 47. Qh8#) 46. Re7+ Kh6 47. Qe3+ Qxe3 48. Rxe3) 44... fxg4+ {[%emt 0:00:03]} 45. fxg4 {[%emt 0:00:01]} (45. Kxh4 Rh5+ (45... Qxf3 $2 46. Qxf3 gxf3 47. Kxg5 $18) 46. Kxg4 Qd7+ 47. Kg3 Qh3+ 48. Kf2 Qh2+ 49. Kf1 Rg5 50. Re7+ Kh6 51. Qxd4 Qh1+ 52. Ke2 Rg2+ 53. Ke3 Qe1+ 54. Kf4 Qh4+ (54... Qxe7 $2 55. Qh8+ Qh7 56. Qxh7+ Kxh7 57. Ke5 $19) 55. Ke3 Qxe7+) 45... Qf7 $2 {[%emt 0:00:01]} (45... Qd7 46. Re4 $16) (45... Re5 $1 $19 {[%cal Re5e1]} 46. Qd1 Rxe1 47. Qxe1 Qf3+ 48. Kh2 Qf6 (48... Qxg4 49. Qe7+ Kh6 50. Qf8+ Kg5 51. Qd8+ Kf5 52. Qd7+ Kg5 53. Qd8+ Kh5 54. Qh8+ Kg5 55. Qd8+ $11)) 46. Qe4 {[%emt 0:00:03]} Rc5 {[%emt 0:00:03]} (46... Qxc4 47. Qe7+ Kg8 48. Qe8+ (48. Qd8+ Kg7 $18) 48... Kh7 49. Re7+ (49. Kxh4 Qg8 $18)) 47. Qxd4 {[%emt 0:00:09][%mdl 8192] [#]} (47. Kxh4 $11 Rxc4 48. Qe7) 47... Rxc4 $2 {[%emt 0:00:02]} (47... Qxc4 48. Re7+ Kh6 49. Qh8+ Kg5 50. Re5+ (50. Qxh4+ Kf4 $18) 50... Rxe5 51. Qxe5+ (51. Qxh4+ Kf4 $18) 51... Kh6 52. Qh8+ (52. Kxh4 Qg8 $14) 52... Kg5 53. Qxh4+ Kf4 54. g5+ Ke5 55. Qxc4) (47... Qf3+ $1 {mates} 48. Kh2 Qg3+ 49. Kh1 Qxe1+ 50. Qg1 Qxg1+ 51. Kxg1 Kh6 (51... Rxc4 {leads to mate.} 52. g5 h3 53. Kh2 Rg4 54. Kxh3 Rxg5 55. Kh4 Kh6 56. Kh3 Kh5 57. Kh2 Kh4 58. Kh1 Kg3 59. Kg1 Rf5 60. Kh1 Rf1#) 52. Kg2 Rxc4 53. Kf3 Kg5 54. Ke3 Rxg4 55. Kd3 h3 56. Ke2 h2 57. Kf3 h1=Q+ (57... h1=R 58. Ke3 Rh3+ 59. Kf2 Rgg3 60. Ke1 Rh2 61. Kf1 Rg4 62. Ke1 Rg1#) 58. Ke2 Qh3 59. Ke1 Rg2 60. Kf1 Qh1#) 48. Re7 $132 {[%emt 0:00:01][%mdl 2048] White puts up resistance} Qxe7 {[%emt 0:00:04]} (48... Rxd4 {simplifies} 49. Rxf7+ Kh6 50. Kxh4 Rb4) 49. Qxc4 {[%emt 0:00:00] KQ-KQ. Black is a pawn up.} g5 {[%emt 0:00:02]} 50. Qc2+ {[%emt 0:00:02]} Kg7 {[%emt 0:00:02]} 51. Qc3+ {[%emt 0:00:01]} Qf6 {[%emt 0:00:00]} 52. Qc7+ {[%emt 0:00:02]} Kg6 {[%emt 0:00:01]} 53. Qc6 {[%emt 0:00:01]} Kf7 {[%emt 0:00:04]} 54. Qc7+ {[%emt 0:00:00]} Ke8 {[%emt 0:00:01] ( -> ...Qf1+)} 55. Qc8+ $1 {[%emt 0:00:02]} Qd8 {[%emt 0:00:05]} 56. Qe6+ {[%emt 0:00:01]} Kf8 {[%emt 0:00:01]} 57. Qh6+ {[%emt 0:00:02]} Kf7 {[%emt 0:00:02] aiming for ...Qd3+.} 58. Qh7+ {[%emt 0:00:00]} Ke6 {[%emt 0:00:02]} 59. Qf5+ {[%emt 0:00:04]} Kd6 {[%emt 0:00:01]} 60. Qd3+ {[%emt 0:00:01]} Kc7 {[%emt 0:00:01]} 61. Qc3+ {[%emt 0:00:02]} Kb8 {[%emt 0:00:01]} 62. Qe3 {[%emt 0:00:08]} Qc7 {[%emt 0:00:04]} 63. Kg2 {[%emt 0:00:00]} Qc2+ {[%emt 0:00:03]} 64. Kg1 $2 {[%emt 0:00:01][%mdl 8192] [#]} (64. Kh3 $11) 64... Qc5 $1 {[%emt 0:00:01] Weighted Error Value: White=0.49/Black=0.34  Loses game:     	White=3     	---        Missed win:     	---       	Black=2      Mistake:       	White=3     	Black=2      Inaccurate:     	White=4     	Black=2      OK:         	White=23    	Black=26     Best:        	White=2     	Black=3      Strong:       	White=1     	Black=2} 0-1

[Event "American Cup Open Champions 2025"]
[Site "Saint Louis"]
[Date "2025.03.15"]
[Round "1.3"]
[White "Caruana, Fabiano"]
[Black "Robson, Ray"]
[Result "1/2-1/2"]
[Annotator "TA"]
[ECO "A08"]
[WhiteElo "2783"]
[BlackElo "2689"]
[PlyCount "107"]
[EventDate "2025.03.02"]
[EventType "k.o."]
[EventCountry "USA"]
[SourceTitle "playchess.com"]
[Source "ChessBase"]
[SourceQuality "1"]
[TimeControl "5400+30"]

{[%evp 9,107,26,21,9,28,-2,7,8,0,0,12,3,34,35,32,33,46,46,47,44,62,54,49,52,58,36,36,18,28,30,52,0,22,21,40,42,66,20,17,17,15,23,23,20,28,25,37,18,26,0,0,0,0,0,0,0,0,0,0,0,58,62,251,266,243,116,98,96,108,44,36,85,49,59,129,26,54,42,195,30,44,0,0,0,0,0,0,0,0,0,0,0,0,0,0,0,0,0,0,0]} 1. Nf3 {[%emt 0:00:04]} d5 {[%emt 0:00:34]} 2. g3 {[%emt 0:00:05]} c5 {[%emt 0:02:21]} 3. Bg2 {[%emt 0:00:26]} Nf6 {[%emt 0:01:03]} 4. O-O {[%emt 0:00:11]} g6 {[%emt 0:00:35]} 5. c4 {[%emt 0:00:23]} Bg7 {[%emt 0:02:29]} 6. Qa4+ {[%emt 0:00:26] A08: King's Indian Attack.} Nc6 {[%emt 0:03:11]} 7. Nc3 $146 {[%emt 0:00:19]} (7. d4 cxd4 8. Nxd4 Bd7 9. cxd5 Nxd5 10. Nxc6 Bxc6 11. Qb3 e6 12. e4 Nb6 13. Nc3 {0-1 Grischuk,A (2708)-Vidit,S (2720) CrunchLab Masters Div 2 W rapid 2024 (4.5)}) 7... d4 {[%emt 0:46:51] [#]} 8. Ne5 $1 {[%emt 0:00:19]} O-O {[%emt 0:04:15]} 9. Nxc6 {[%emt 0:00:07]} bxc6 {[%emt 0:00:03]} 10. Nd1 {[%emt 0:00:08]} Bd7 {[%emt 0:10:33]} 11. d3 {[%emt 0:00:34]} e5 {[%emt 0:02:01]} 12. Bxc6 {[%emt 0:00:20]} Bxc6 {[%emt 0:08:42] Black sacrificed a pawn} 13. Qxc6 {[%emt 0:00:08]} Rc8 {[%emt 0:00:24]} 14. Qg2 {[%emt 0:00:24]} Qd7 {[%emt 0:03:57]} 15. f3 {[%emt 0:12:18]} a5 {[%emt 0:02:52]} 16. b3 {[%emt 0:07:05]} a4 {[%emt 0:01:39]} 17. Nb2 {[%emt 0:00:21]} axb3 $1 {[%emt 0:00:23]} 18. axb3 {[%emt 0:00:04]} Qb7 {[%emt 0:02:37]} 19. Ra3 {[%emt 0:00:05]} Qb4 {[%emt 0:00:45]} 20. Na4 {[%emt 0:00:07]} (20. Nd1 $14) 20... Bh6 {[%emt 0:00:43]} 21. Bxh6 {[%emt 0:12:40]} Qxa3 {[%emt 0:00:02]} 22. Bxf8 {[%emt 0:00:05]} Rxf8 {[%emt 0:00:21]} 23. Rb1 {[%emt 0:00:30]} (23. Qh3 $14 {is superior.}) 23... Rb8 $11 {[%emt 0:00:42]} 24. Qf1 {[%emt 0:00:06]} Nd7 {[%emt 0:00:32]} 25. Qd1 {[%emt 0:00:17]} f5 {[%emt 0:01:22]} 26. Qc2 {[%emt 0:03:00]} Nf6 {[%emt 0:02:00]} 27. Kg2 {[%emt 0:07:17]} Nd7 {[%emt 0:01:34]} 28. Kf2 {[%emt 0:02:15]} Kf7 {[%emt 0:00:53]} 29. e4 {[%emt 0:09:39]} fxe4 {[%emt 0:00:48]} 30. dxe4 {[%emt 0:00:10]} g5 {[%emt 0:00:28]} 31. Kg2 {[%emt 0:02:55]} Ke6 {[%emt 0:00:29]} 32. Qd1 {[%emt 0:01:04]} h6 {[%emt 0:00:41]} 33. f4 {[%emt 0:07:45]} gxf4 {[%emt 0:00:12]} 34. Qg4+ {[%emt 0:00:10]} Kd6 {[%emt 0:00:37]} (34... Ke7 $1 $11) 35. gxf4 $14 {[%emt 0:00:44]} Rxb3 $2 {[%emt 0:00:48]} (35... Qb4 $1 $14 36. fxe5+ Nxe5) 36. Rxb3 $18 {[%emt 0:00:37]} Qxa4 $14 {[%emt 0:00:01][%mdl 4096] Endgame KQR-KQN} (36... Qxb3 $2 37. Qxd7+ Kxd7 38. Nxc5+ Kd6 39. Nxb3 $18) 37. Qg6+ {[%emt 0:21:25]} (37. Rb2 $1 $18 {is the precise move to win.}) 37... Kc7 $16 {[%emt 0:00:25]} 38. Rb2 {[%emt 0:00:03] Inhibits Qa2.} exf4 {[%emt 0:01:03][%cal Be5f4,Bf4f3][%mdl 32]} 39. Qxh6 {[%emt 0:02:29] White is more active.} ({White should try} 39. Qf7 $16) 39... f3+ $14 {[%emt 0:00:15]} 40. Kg3 {[%emt 0:00:04]} (40. Kxf3 $2 Qa3+ (40... Qxc4 41. Qf4+ Kc6 42. Kg2 $14) 41. Kg4 Qxb2 $19) 40... Qxc4 {[%emt 0:00:48]} 41. Qf4+ {[%emt 0:00:19]} (41. Kxf3 $2 Qc3+ 42. Kg4 Qxb2 $19) 41... Kc8 {[%emt 0:00:29] [#]} ({Black should try} 41... Kc6 $14) 42. Qxf3 {[%emt 0:02:26]} (42. Kxf3 $2 {loses.} Qc3+ 43. Kg4 Qxb2 $19) (42. h4 $1 $16 {[%cal Rh4h5]}) 42... Qc1 $1 $11 {[%emt 0:00:29]} 43. Ra2 {[%emt 0:01:54]} Qg5+ {[%emt 0:00:31] [#]} (43... c4 $14) 44. Kf2 $2 {[%emt 0:02:22]} (44. Qg4 $1 $18 {[%cal Rg4g5]} Qxg4+ 45. Kxg4) 44... c4 {[%emt 0:00:30]} 45. Qf5 {[%emt 0:02:37]} Qe3+ {[%emt 0:00:30] The position is equal.} ({Wrong is} 45... Qxf5+ $2 46. exf5 Kc7 47. Kf3 $18) 46. Kg2 {[%emt 0:00:03] White threatens Ra8+ and mate.} d3 $1 {[%emt 0:00:25]} 47. Qd5 {[%emt 0:03:29]} c3 {[%emt 0:00:30]} 48. Qc6+ {[%emt 0:03:23]} Kd8 {[%emt 0:00:02]} 49. Qxc3 {[%emt 0:00:26]} Qxe4+ {[%emt 0:00:07]} 50. Kf2 {[%emt 0:00:36][%cal Oa2a8]} Qf5+ {[%emt 0:01:07]} 51. Kg1 {[%emt 0:00:15]} Qg4+ {[%emt 0:00:09]} 52. Kf2 {[%emt 0:00:54]} Qf5+ {[%emt 0:00:02]} 53. Kg1 {[%emt 0:00:32] Strongly threatening Qa5+.} Qg4+ {[%emt 0:00:02]} 54. Kf2 {[%emt 0:00:11] Weighted Error Value: White=0.17 (very precise) /Black=0.16 (very precise)   Loses game:     	---       	Black=1      Missed win:     	White=1     	---        Mistake:       	White=5     	Black=3      Inaccurate:     	White=3     	Black=1      OK:         	White=16    	Black=22     Best:        	White=4     	Black=5      Strong:       	---       	Black=3} 1/2-1/2